Workbook

Sheet Лист1
G1: Утверждаю:
D2: Заведующий МАДОУ д/с № 10
D3: ____________________ Г.Н. Лядова
B5: МЕНЮ-ПЕРЕЧЕНЬ на 19.09.2025
A7: Прием | B7: Блюдо | C7: Диетический | E7: Выход, гр. | G7: Калорийность
A8: пищи | C8: режим | E8: ясли | F8: сад | G8: ясли | H8: сад
A9: Завтрак | B9: Каша "Дружба" молочная с маслом | C9: Дети | E9: 180 | F9: 200 | G9: 152 | H9: 169
B10: Какао с молоком | E10: 150 | F10: 180 | G10: 89 | H10: 107
B11: Бутерброд с маслом и сыром | E11: 20\5\10 | F11: 25\7\12 | G11: 109 | H11: 135
B12: всего | E12: =E9+E10+35 -> 365 | F12: =F9+F10+44 -> 424 | G12: =G9+G10+G11 -> 350 | H12: =H9+H10+H11 -> 411
A13: 2-й Завтрак | B13: Яблоко | E13: 100 | F13: 100 | G13: 44 | H13: 44
B14: всего | E14: =E13 -> 100 | F14: =F13 -> 100 | G14: 44 | H14: 44
A15: Обед | B15: Суп картофельный с клецками и птицей | E15: 180 | F15: 200 | G15: 63 | H15: 70
B16: Капуста тушенная | E16: 130 | F16: 150 | G16: 97 | H16: 112
B17: Картофель отварной | E17: 100 | F17: 150 | G17: 102 | H17: 155
B19: Тефтели мясные | E19: 70 | F19: 80 | G19: 90 | H19: 103
B20: Компот из шиповника с лимоном | E20: 150\5 | F20: 180\5 | G20: 81 | H20: 89
B21: Хлеб ржаной | E21: 40 | F21: 50 | G21: 69 | H21: 87
B22: Хлеб пшеничный | E22: 20 | F22: 25 | G22: 48 | H22: 60
B23: всего | E23: =E15+E16+E19+E21+E22+185 -> 625 | F23: =F15+F16+F19+F21+F22+185 -> 690 | G23: =G15+G16+G17+G19+G20+G21+G22 -> 550 | H23: =H15+H16+H17+H19+H20+H21+H22 -> 676
A24: Полдник | B24: Молоко кипяченое | E24: 200 | F24: 8 | G24: 113 | H24: 113
B25: Пряник | E25: 40 | F25: 40 | G25: 144 | H25: 144
B26: всего | E26: =E24+E25 -> 240 | F26: =F24+F25 -> 48 | G26: =G24+G25 -> 257 | H26: 257
A27: Ужин | B27: Суп молочный с рисом | E27: 150 | F27: 200 | G27: 112 | H27: 124
B28: Чай с сахаром | E28: 180 | F28: 200 | G28: 40 | H28: 44
B29: Хлеб пшеничный | E29: 20 | F29: 25 | G29: 48 | H29: 60
B30: всего | E30: =E27+E28+E29 -> 350 | F30: =F27+F28+F29 -> 425 | G30: 200 | H30: 228
A31: Всего за день кКалл | G31: =G12+G14+G23+G26+G30 -> 1401 | H31: =H12+H14+H23+H26+H30 -> 1616
C33: Составил Сидорова О.А.________________
